[Event "*** SCC Grand Prix: Titled Tuesday Blitz"]
[Site "Chess.com"]
[Date "2020.10.13"]
[Round "4"]
[White "biostatistician"]
[Black "Bulldog167"]
[Result "1/2-1/2"]
[WhiteElo "2566"]
[BlackElo "2745"]
[TimeControl "180+1"]
[EndTime "10:40:27 PDT"]
[Termination "Game drawn - insufficient material"]

1. d4 {[%clk 0:02:58.5]} 1... Nf6 {[%clk 0:02:59.8]} 2. Nf3 {[%clk 0:02:59.4]}
2... e6 {[%clk 0:02:59.7]} 3. c4 {[%clk 0:02:59.9]} 3... c5 {[%clk 0:02:59.6]}
4. e3 {[%clk 0:02:59.8]} 4... d5 {[%clk 0:02:59.8]} 5. Nc3 {[%clk 0:02:59.4]}
5... dxc4 {[%clk 0:02:58.2]} 6. Bxc4 {[%clk 0:02:59.3]} 6... a6 {[%clk
0:02:58.5]} 7. O-O {[%clk 0:02:58.8]} 7... b5 {[%clk 0:02:58.9]} 8. Bd3 {[%clk
0:02:57.7]} 8... Bb7 {[%clk 0:02:59.1]} 9. a3 {[%clk 0:02:57]} 9... Nbd7 {[%clk
0:02:59.2]} 10. Qe2 {[%clk 0:02:55.8]} 10... Be7 {[%clk 0:02:58.4]} 11. Rd1
{[%clk 0:02:52.8]} 11... Qb6 {[%clk 0:02:57.2]} 12. Ng5 {[%clk 0:02:20.3]} 12...
h6 {[%clk 0:02:48]} 13. Nge4 {[%clk 0:02:15.4]} 13... O-O {[%clk 0:02:46.7]} 14.
dxc5 {[%clk 0:02:08.2]} 14... Nxc5 {[%clk 0:02:46]} 15. Nxc5 {[%clk 0:02:08]}
15... Qxc5 {[%clk 0:02:46]} 16. Bd2 {[%clk 0:02:02.1]} 16... Rfd8 {[%clk
0:02:45.6]} 17. Rac1 {[%clk 0:02:00.6]} 17... Qg5 {[%clk 0:02:42.1]} 18. f4
{[%clk 0:01:53.6]} 18... Qg4 {[%clk 0:02:36.4]} 19. Qxg4 {[%clk 0:01:45.2]}
19... Nxg4 {[%clk 0:02:36.1]} 20. Be4 {[%clk 0:01:37.7]} 20... Bxe4 {[%clk
0:02:28]} 21. Nxe4 {[%clk 0:01:38.6]} 21... Nf6 {[%clk 0:02:23.3]} 22. Nf2
{[%clk 0:01:19.6]} 22... Rac8 {[%clk 0:02:20.5]} 23. Rxc8 {[%clk 0:00:53.2]}
23... Rxc8 {[%clk 0:02:21.4]} 24. Rc1 {[%clk 0:00:53.2]} 24... Rd8 {[%clk
0:02:21.8]} 25. Ba5 {[%clk 0:00:48.3]} 25... Ra8 {[%clk 0:02:18.5]} 26. Kf1
{[%clk 0:00:47]} 26... Nd5 {[%clk 0:02:17.4]} 27. Ke2 {[%clk 0:00:46.5]} 27...
Bf6 {[%clk 0:02:17.3]} 28. Nd3 {[%clk 0:00:41.9]} 28... g5 {[%clk 0:02:14.6]}
29. g3 {[%clk 0:00:40.1]} 29... Kg7 {[%clk 0:02:15]} 30. e4 {[%clk 0:00:39]}
30... gxf4 {[%clk 0:01:55.4]} 31. gxf4 {[%clk 0:00:19.8]} 31... Nxf4+ {[%clk
0:01:48.3]} 32. Nxf4 {[%clk 0:00:20.3]} 32... Bxb2 {[%clk 0:01:49.2]} 33. Rc7
{[%clk 0:00:19.8]} 33... Kf6 {[%clk 0:01:45.1]} 34. Kf3 {[%clk 0:00:16.6]} 34...
Be5 {[%clk 0:01:37.8]} 35. Bc3 {[%clk 0:00:16.3]} 35... Bxc3 {[%clk 0:01:36.3]}
36. Rxc3 {[%clk 0:00:17.2]} 36... a5 {[%clk 0:01:36.2]} 37. Rb3 {[%clk
0:00:17.2]} 37... Rb8 {[%clk 0:01:35.5]} 38. Ke3 {[%clk 0:00:17.7]} 38... b4
{[%clk 0:01:33.1]} 39. axb4 {[%clk 0:00:17.6]} 39... Rxb4 {[%clk 0:01:33.5]} 40.
Rxb4 {[%clk 0:00:17.6]} 40... axb4 {[%clk 0:01:34.4]} 41. Nd3 {[%clk 0:00:18.3]}
41... b3 {[%clk 0:01:34.7]} 42. Kf4 {[%clk 0:00:18.7]} 42... e5+ {[%clk
0:01:32.2]} 43. Kg4 {[%clk 0:00:18.5]} 43... Ke6 {[%clk 0:01:32.7]} 44. Kh5
{[%clk 0:00:17.9]} 44... f5 {[%clk 0:01:32.8]} 45. Nc5+ {[%clk 0:00:11.7]} 45...
Kf6 {[%clk 0:01:32.3]} 46. Nxb3 {[%clk 0:00:12.6]} 46... fxe4 {[%clk 0:01:32.8]}
47. Kg4 {[%clk 0:00:13]} 47... Ke6 {[%clk 0:01:21.1]} 48. Nc1 {[%clk 0:00:09.8]}
48... Kd5 {[%clk 0:01:21.2]} 49. Ne2 {[%clk 0:00:09.4]} 49... Kc4 {[%clk
0:01:20.6]} 50. Kg3 {[%clk 0:00:10]} 50... Kd3 {[%clk 0:01:20.5]} 51. Kf2 {[%clk
0:00:10.5]} 51... Kd2 {[%clk 0:01:11.7]} 52. Ng3 {[%clk 0:00:09.2]} 52... e3+
{[%clk 0:01:04.9]} 53. Kf3 {[%clk 0:00:09.4]} 53... Kd3 {[%clk 0:01:05.4]} 54.
h4 {[%clk 0:00:06.1]} 54... h5 {[%clk 0:01:05.2]} 55. Kg2 {[%clk 0:00:04.9]}
55... Kd2 {[%clk 0:01:01.6]} 56. Kf1 {[%clk 0:00:04.3]} 56... Kd1 {[%clk
0:00:46.8]} 57. Ne2 {[%clk 0:00:04.4]} 57... Kd2 {[%clk 0:00:47.4]} 58. Ng1
{[%clk 0:00:04.7]} 58... Kd3 {[%clk 0:00:42.5]} 59. Ke1 {[%clk 0:00:04.3]} 59...
Ke4 {[%clk 0:00:42.3]} 60. Ke2 {[%clk 0:00:02]} 60... Kf4 {[%clk 0:00:43.2]} 61.
Nf3 {[%clk 0:00:02.2]} 61... e4 {[%clk 0:00:43.9]} 62. Ng5 {[%clk 0:00:02.2]}
62... Kg4 {[%clk 0:00:42.7]} 63. Nxe4 {[%clk 0:00:02.6]} 63... Kxh4 {[%clk
0:00:43.6]} 64. Kxe3 {[%clk 0:00:03.5]} 64... Kh3 {[%clk 0:00:44.3]} 65. Kf4
{[%clk 0:00:03.4]} 65... h4 {[%clk 0:00:44.5]} 66. Ng5+ {[%clk 0:00:03.8]} 66...
Kg2 {[%clk 0:00:44.8]} 67. Kg4 {[%clk 0:00:04.7]} 67... h3 {[%clk 0:00:45.2]}
68. Nxh3 {[%clk 0:00:05.5]} 1/2-1/2

[Event "*** SCC Grand Prix: Titled Tuesday Blitz"]
[Site "Chess.com"]
[Date "2020.10.13"]
[Round "4"]
[White "Ind1anStar"]
[Black "brunomorado"]
[Result "1-0"]
[WhiteElo "2454"]
[BlackElo "2302"]
[TimeControl "180+1"]
[EndTime "10:40:30 PDT"]
[Termination "Ind1anStar won by resignation"]

1. d4 {[%clk 0:03:00.9]} 1... d5 {[%clk 0:02:57.9]} 2. Nf3 {[%clk 0:02:52.8]}
2... Nf6 {[%clk 0:02:57.5]} 3. Bf4 {[%clk 0:02:52.5]} 3... Bf5 {[%clk
0:02:57.2]} 4. e3 {[%clk 0:02:52.5]} 4... e6 {[%clk 0:02:57.5]} 5. Bd3 {[%clk
0:02:51.1]} 5... Bg4 {[%clk 0:02:51.8]} 6. Nbd2 {[%clk 0:02:48.9]} 6... Bd6
{[%clk 0:02:51.7]} 7. Bg3 {[%clk 0:02:48.4]} 7... O-O {[%clk 0:02:51.2]} 8. c3
{[%clk 0:02:46.9]} 8... c5 {[%clk 0:02:50.4]} 9. O-O {[%clk 0:02:43.1]} 9... Nc6
{[%clk 0:02:50.1]} 10. h3 {[%clk 0:02:33]} 10... Bh5 {[%clk 0:02:49.9]} 11. Bxd6
{[%clk 0:02:16.8]} 11... Qxd6 {[%clk 0:02:50]} 12. dxc5 {[%clk 0:02:17]} 12...
Qxc5 {[%clk 0:02:49.2]} 13. Qc2 {[%clk 0:02:17.1]} 13... e5 {[%clk 0:02:44.3]}
14. e4 {[%clk 0:02:11.6]} 14... Rac8 {[%clk 0:02:36.4]} 15. exd5 {[%clk
0:01:45.3]} 15... Nb4 {[%clk 0:02:34.9]} 16. Qb1 {[%clk 0:01:22.7]} 16... Nxd3
{[%clk 0:02:32.2]} 17. Qxd3 {[%clk 0:01:23.6]} 17... Bxf3 {[%clk 0:02:16.3]} 18.
Qxf3 {[%clk 0:01:18.9]} 18... Qxd5 {[%clk 0:02:09.3]} 19. Qxd5 {[%clk
0:01:18.6]} 19... Nxd5 {[%clk 0:02:10.2]} 20. Rfe1 {[%clk 0:01:19]} 20... f6
{[%clk 0:02:09.5]} 21. Rad1 {[%clk 0:01:18.5]} 21... Rfd8 {[%clk 0:02:07.9]} 22.
Ne4 {[%clk 0:01:18.4]} 22... Nf4 {[%clk 0:02:05.3]} 23. g3 {[%clk 0:00:51.1]}
23... Ne6 {[%clk 0:01:55.6]} 24. Kg2 {[%clk 0:00:45]} 24... Kf8 {[%clk
0:01:54.7]} 25. h4 {[%clk 0:00:34]} 25... Ke7 {[%clk 0:01:54.6]} 26. Kf3 {[%clk
0:00:30.9]} 26... h6 {[%clk 0:01:46.5]} 27. Ke3 {[%clk 0:00:29.5]} 27... f5
{[%clk 0:01:38.1]} 28. Nd2 {[%clk 0:00:28.1]} 28... Kf6 {[%clk 0:01:26.1]} 29.
Nf3 {[%clk 0:00:21.8]} 29... e4 {[%clk 0:01:20.9]} 30. Nd4 {[%clk 0:00:13.4]}
30... Nc5 {[%clk 0:01:13.4]} 31. Rg1 {[%clk 0:00:09.2]} 31... Na4 {[%clk
0:01:09.5]} 32. Rd2 {[%clk 0:00:08.6]} 32... Nc5 {[%clk 0:01:03.8]} 33. g4
{[%clk 0:00:06.4]} 33... g6 {[%clk 0:01:01.3]} 34. h5 {[%clk 0:00:06.2]} 34...
Ke5 {[%clk 0:00:51.6]} 35. hxg6 {[%clk 0:00:02.7]} 35... f4+ {[%clk 0:00:51.6]}
36. Ke2 {[%clk 0:00:03.2]} 36... Rg8 {[%clk 0:00:48.1]} 37. Rh1 {[%clk
0:00:03.5]} 37... Rxg6 {[%clk 0:00:48.2]} 38. Rh5+ {[%clk 0:00:03.5]} 38... Rg5
{[%clk 0:00:37.9]} 39. Rxg5+ {[%clk 0:00:01.4]} 39... hxg5 {[%clk 0:00:38.8]}
40. Nf5 {[%clk 0:00:02.1]} 40... Rc7 {[%clk 0:00:28.2]} 41. Nd6 {[%clk 0:00:02]}
41... Rd7 {[%clk 0:00:21.9]} 42. Nc4+ {[%clk 0:00:02.1]} 42... Ke6 {[%clk
0:00:22.2]} 43. b3 {[%clk 0:00:01.5]} 43... Rxd2+ {[%clk 0:00:19.7]} 44. Nxd2
{[%clk 0:00:02.4]} 44... Nd3 {[%clk 0:00:19.3]} 45. Nxe4 {[%clk 0:00:02.3]}
45... Nc1+ {[%clk 0:00:16]} 46. Kd2 {[%clk 0:00:02.7]} 46... Nxa2 {[%clk
0:00:16.9]} 47. Nxg5+ {[%clk 0:00:03.1]} 47... Kf6 {[%clk 0:00:17.3]} 48. Ne4+
{[%clk 0:00:03.4]} 48... Ke5 {[%clk 0:00:17.9]} 49. f3 {[%clk 0:00:04]} 49... a5
{[%clk 0:00:18.1]} 50. Kc2 {[%clk 0:00:04.2]} 50... b5 {[%clk 0:00:17.2]} 51.
Kb2 {[%clk 0:00:04.5]} 51... b4 {[%clk 0:00:18.1]} 52. Kxa2 {[%clk 0:00:04.4]}
52... bxc3 {[%clk 0:00:18.6]} 53. Nxc3 {[%clk 0:00:05.1]} 53... Kd4 {[%clk
0:00:19.5]} 54. Nd1 {[%clk 0:00:04.2]} 54... Kd3 {[%clk 0:00:19.8]} 55. g5
{[%clk 0:00:04.7]} 55... Ke2 {[%clk 0:00:20.7]} 56. g6 {[%clk 0:00:05.1]} 56...
Kxf3 {[%clk 0:00:21.6]} 57. g7 {[%clk 0:00:05.5]} 57... Ke2 {[%clk 0:00:22.5]}
58. g8=Q {[%clk 0:00:05.7]} 58... Kxd1 {[%clk 0:00:23.4]} 59. Qg4+ {[%clk
0:00:05.2]} 59... f3 {[%clk 0:00:23.8]} 60. Qxf3+ {[%clk 0:00:05.3]} 60... Kc2
{[%clk 0:00:24.7]} 61. Qc6+ {[%clk 0:00:05]} 61... Kd2 {[%clk 0:00:24.9]} 62.
Qc4 {[%clk 0:00:04.7]} 1-0

[Event "*** SCC Grand Prix: Titled Tuesday Blitz"]
[Site "Chess.com"]
[Date "2020.10.13"]
[Round "4"]
[White "LionTheLeon_06"]
[Black "Ajedrez_con_German"]
[Result "1/2-1/2"]
[WhiteElo "2631"]
[BlackElo "2496"]
[TimeControl "180+1"]
[EndTime "10:40:33 PDT"]
[Termination "Game drawn by repetition"]

1. Nf3 {[%clk 0:03:00.9]} 1... d5 {[%clk 0:02:55.6]} 2. c4 {[%clk 0:03:00.6]}
2... c6 {[%clk 0:02:52.7]} 3. e3 {[%clk 0:02:59.3]} 3... Nf6 {[%clk 0:02:49.5]}
4. b3 {[%clk 0:02:58.6]} 4... Bg4 {[%clk 0:02:47.9]} 5. Bb2 {[%clk 0:02:57.5]}
5... e6 {[%clk 0:02:48.3]} 6. Be2 {[%clk 0:02:56.9]} 6... Nbd7 {[%clk
0:02:48.5]} 7. h3 {[%clk 0:02:56.1]} 7... Bh5 {[%clk 0:02:47.2]} 8. Nc3 {[%clk
0:02:53.1]} 8... Bd6 {[%clk 0:02:46.5]} 9. g4 {[%clk 0:02:48.1]} 9... Bg6 {[%clk
0:02:46.1]} 10. Nh4 {[%clk 0:02:48.3]} 10... Qe7 {[%clk 0:02:42.8]} 11. Nxg6
{[%clk 0:02:37.1]} 11... hxg6 {[%clk 0:02:42.6]} 12. Bf3 {[%clk 0:02:37.6]}
12... Ne5 {[%clk 0:02:25.7]} 13. Be2 {[%clk 0:02:34.1]} 13... Ba3 {[%clk
0:02:17.6]} 14. Bxa3 {[%clk 0:02:32.3]} 14... Qxa3 {[%clk 0:02:16.8]} 15. d4
{[%clk 0:02:31.1]} 15... Qb4 {[%clk 0:01:42.4]} 16. Rc1 {[%clk 0:02:06.2]} 16...
Ne4 {[%clk 0:01:16.1]} 17. Qc2 {[%clk 0:01:46]} 17... Nd7 {[%clk 0:01:01.7]} 18.
Bf3 {[%clk 0:01:37.3]} 18... Qxc3+ {[%clk 0:01:00.8]} 19. Qxc3 {[%clk
0:01:36.7]} 19... Nxc3 {[%clk 0:01:01.7]} 20. Rxc3 {[%clk 0:01:37.2]} 20... Ke7
{[%clk 0:01:00.3]} 21. Bg2 {[%clk 0:01:36.4]} 21... g5 {[%clk 0:00:59.6]} 22.
Ke2 {[%clk 0:01:35]} 22... Nf6 {[%clk 0:00:59.5]} 23. Rb1 {[%clk 0:01:33.4]}
23... Kd6 {[%clk 0:00:57.1]} 24. b4 {[%clk 0:01:32.7]} 24... dxc4 {[%clk
0:00:54]} 25. Rxc4 {[%clk 0:01:32.5]} 25... a6 {[%clk 0:00:54.5]} 26. Rc5 {[%clk
0:01:26.9]} 26... Nd5 {[%clk 0:00:46]} 27. Kd2 {[%clk 0:01:17]} 27... f6 {[%clk
0:00:43.1]} 28. a4 {[%clk 0:01:12.1]} 28... b6 {[%clk 0:00:35.4]} 29. Rc2 {[%clk
0:01:09.2]} 29... Rac8 {[%clk 0:00:32.2]} 30. Kd3 {[%clk 0:00:52.2]} 30... Rc7
{[%clk 0:00:28.6]} 31. Kd2 {[%clk 0:00:51.4]} 31... Rhc8 {[%clk 0:00:28.3]} 32.
Be4 {[%clk 0:00:45.9]} 32... Rh8 {[%clk 0:00:23.8]} 33. Bg2 {[%clk 0:00:45.9]}
33... Rhc8 {[%clk 0:00:23.7]} 34. Rcc1 {[%clk 0:00:46.4]} 34... Rh8 {[%clk
0:00:21.4]} 35. Rh1 {[%clk 0:00:43.7]} 35... Rhc8 {[%clk 0:00:20.7]} 36. h4
{[%clk 0:00:43.5]} 36... gxh4 {[%clk 0:00:20.5]} 37. Rxh4 {[%clk 0:00:44.4]}
37... c5 {[%clk 0:00:21.2]} 38. bxc5+ {[%clk 0:00:41.4]} 38... bxc5 {[%clk
0:00:22.1]} 39. dxc5+ {[%clk 0:00:36.6]} 39... Rxc5 {[%clk 0:00:22]} 40. Rh7
{[%clk 0:00:26.5]} 40... Rc2+ {[%clk 0:00:21.4]} 41. Ke1 {[%clk 0:00:26.6]}
41... Ra2 {[%clk 0:00:16.1]} 42. Bxd5 {[%clk 0:00:22.5]} 42... Kxd5 {[%clk
0:00:15.2]} 43. Rxg7 {[%clk 0:00:19.3]} 43... Rcc2 {[%clk 0:00:14.9]} 44. Rd7+
{[%clk 0:00:17.9]} 44... Ke5 {[%clk 0:00:15]} 45. Ra7 {[%clk 0:00:03.5]} 45...
Re2+ {[%clk 0:00:14.7]} 46. Kf1 {[%clk 0:00:03.1]} 46... Rxf2+ {[%clk
0:00:15.1]} 47. Kg1 {[%clk 0:00:03.7]} 47... Rg2+ {[%clk 0:00:15.6]} 48. Kh1
{[%clk 0:00:04.3]} 48... Rh2+ {[%clk 0:00:16]} 49. Kg1 {[%clk 0:00:04.9]} 49...
Rag2+ {[%clk 0:00:15.9]} 50. Kf1 {[%clk 0:00:05.5]} 50... Ra2 {[%clk 0:00:15.8]}
51. Kg1 {[%clk 0:00:05.4]} 51... Rhg2+ {[%clk 0:00:15.3]} 52. Kh1 {[%clk
0:00:05.9]} 52... Rxg4 {[%clk 0:00:12]} 53. Rxa6 {[%clk 0:00:05.7]} 53... Rgg2
{[%clk 0:00:10.8]} 54. Rb5+ {[%clk 0:00:03.2]} 54... Ke4 {[%clk 0:00:09]} 55.
Rxe6+ {[%clk 0:00:03.8]} 55... Kd3 {[%clk 0:00:07.5]} 56. Rxf6 {[%clk
0:00:03.4]} 56... Rh2+ {[%clk 0:00:06]} 57. Kg1 {[%clk 0:00:03.8]} 57... Rhg2+
{[%clk 0:00:06.5]} 58. Kf1 {[%clk 0:00:04.3]} 58... Rh2 {[%clk 0:00:06.7]} 59.
Kg1 {[%clk 0:00:02.4]} 59... Rhg2+ {[%clk 0:00:06.9]} 60. Kf1 {[%clk 0:00:02.9]}
60... Rh2 {[%clk 0:00:07.3]} 61. Kg1 {[%clk 0:00:03.3]} 1/2-1/2

[Event "*** SCC Grand Prix: Titled Tuesday Blitz"]
[Site "Chess.com"]
[Date "2020.10.13"]
[Round "4"]
[White "LiemLe"]
[Black "vugarrasulov"]
[Result "1/2-1/2"]
[WhiteElo "2980"]
[BlackElo "2834"]
[TimeControl "180+1"]
[EndTime "10:40:37 PDT"]
[Termination "Game drawn by repetition"]

1. d4 {[%clk 0:03:00.9]} 1... Nf6 {[%clk 0:03:00.4]} 2. Nf3 {[%clk 0:03:01.2]}
2... e6 {[%clk 0:03:00.8]} 3. Bf4 {[%clk 0:03:01]} 3... d5 {[%clk 0:02:59.7]} 4.
e3 {[%clk 0:02:59.3]} 4... Bd6 {[%clk 0:02:59.9]} 5. Nbd2 {[%clk 0:02:58.4]}
5... O-O {[%clk 0:02:59.1]} 6. c3 {[%clk 0:02:58]} 6... c5 {[%clk 0:02:59.4]} 7.
Bd3 {[%clk 0:02:50.4]} 7... b6 {[%clk 0:02:54.8]} 8. Qe2 {[%clk 0:02:42]} 8...
Bb7 {[%clk 0:02:54.8]} 9. Rd1 {[%clk 0:02:35.6]} 9... Bxf4 {[%clk 0:02:41.5]}
10. exf4 {[%clk 0:02:36.5]} 10... Nc6 {[%clk 0:02:41.5]} 11. O-O {[%clk
0:02:12.9]} 11... cxd4 {[%clk 0:02:37.1]} 12. Nxd4 {[%clk 0:02:13.8]} 12... Nxd4
{[%clk 0:02:35.7]} 13. cxd4 {[%clk 0:02:14.7]} 13... Qd6 {[%clk 0:02:27.6]} 14.
g3 {[%clk 0:02:13.3]} 14... Rfc8 {[%clk 0:02:27.9]} 15. Rc1 {[%clk 0:02:06.8]}
15... Rxc1 {[%clk 0:02:20.1]} 16. Rxc1 {[%clk 0:02:07.7]} 16... Rc8 {[%clk
0:02:20.4]} 17. Rxc8+ {[%clk 0:02:06]} 17... Bxc8 {[%clk 0:02:21.3]} 18. Nf3
{[%clk 0:02:06]} 18... Qc7 {[%clk 0:02:15.9]} 19. Qe5 {[%clk 0:01:56.6]} 19...
Qxe5 {[%clk 0:02:13.6]} 20. fxe5 {[%clk 0:01:52.2]} 20... Ne8 {[%clk 0:02:08.1]}
21. Kf1 {[%clk 0:01:41.8]} 21... h6 {[%clk 0:02:08.2]} 22. Ke2 {[%clk
0:01:38.9]} 22... Kf8 {[%clk 0:02:08.6]} 23. Ke3 {[%clk 0:01:35.1]} 23... Ke7
{[%clk 0:02:08.8]} 24. Nh4 {[%clk 0:01:35]} 24... Nc7 {[%clk 0:02:05.5]} 25. f4
{[%clk 0:01:32]} 25... Ba6 {[%clk 0:02:00.8]} 26. Bc2 {[%clk 0:01:31.5]} 26...
Bc4 {[%clk 0:01:43.7]} 27. b3 {[%clk 0:01:28]} 27... Bf1 {[%clk 0:01:43.5]} 28.
f5 {[%clk 0:01:22.9]} 28... a5 {[%clk 0:01:38.5]} 29. g4 {[%clk 0:01:20.6]}
29... Na6 {[%clk 0:01:31.7]} 30. a3 {[%clk 0:01:20.1]} 30... Nc7 {[%clk
0:01:31.7]} 31. Nf3 {[%clk 0:01:18.8]} 31... Bh3 {[%clk 0:01:17.4]} 32. Kf4
{[%clk 0:01:16.6]} 32... Bg2 {[%clk 0:01:17.6]} 33. Ne1 {[%clk 0:01:06.4]} 33...
Bf1 {[%clk 0:01:14.9]} 34. a4 {[%clk 0:00:57.2]} 34... Na6 {[%clk 0:01:12.9]}
35. h4 {[%clk 0:00:57.2]} 35... Nb4 {[%clk 0:01:11.6]} 36. Bd1 {[%clk
0:00:42.3]} 36... Nd3+ {[%clk 0:01:03.5]} 37. Nxd3 {[%clk 0:00:42.3]} 37... Bxd3
{[%clk 0:01:04.4]} 38. Ke3 {[%clk 0:00:36.5]} 38... Bb1 {[%clk 0:01:01.2]} 39.
fxe6 {[%clk 0:00:35.5]} 39... fxe6 {[%clk 0:01:02.1]} 40. g5 {[%clk 0:00:32]}
40... hxg5 {[%clk 0:01:02.3]} 41. hxg5 {[%clk 0:00:32.9]} 41... Kf7 {[%clk
0:01:00.1]} 42. Bh5+ {[%clk 0:00:32.2]} 42... Ke7 {[%clk 0:00:59.2]} 43. Kd2
{[%clk 0:00:31.9]} 43... Be4 {[%clk 0:00:57.1]} 44. Kc3 {[%clk 0:00:29.7]} 44...
Kd7 {[%clk 0:00:52.2]} 45. b4 {[%clk 0:00:29.3]} 45... Ke7 {[%clk 0:00:52.3]}
46. Kb3 {[%clk 0:00:26.2]} 46... Bd3 {[%clk 0:00:48.4]} 47. Kc3 {[%clk 0:00:26]}
47... Be4 {[%clk 0:00:46.4]} 48. Kb3 {[%clk 0:00:26.1]} 48... Bf5 {[%clk
0:00:36.8]} 49. Kc3 {[%clk 0:00:25.7]} 49... Bh3 {[%clk 0:00:36.8]} 50. Kb3
{[%clk 0:00:24.1]} 50... Bf1 {[%clk 0:00:36.4]} 51. Kc3 {[%clk 0:00:24.2]} 51...
Bc4 {[%clk 0:00:35.4]} 52. Bg6 {[%clk 0:00:23.6]} 52... Be2 {[%clk 0:00:34.3]}
53. bxa5 {[%clk 0:00:20.4]} 53... bxa5 {[%clk 0:00:34.3]} 54. Kb2 {[%clk
0:00:20.3]} 54... Bd1 {[%clk 0:00:32.2]} 55. Ka3 {[%clk 0:00:20.8]} 55... Kf8
{[%clk 0:00:31]} 56. Bd3 {[%clk 0:00:18.5]} 56... Kf7 {[%clk 0:00:30.8]} 57. Bb1
{[%clk 0:00:18]} 57... Bf3 {[%clk 0:00:24.9]} 58. Kb2 {[%clk 0:00:14.6]} 58...
Bd1 {[%clk 0:00:22.8]} 59. g6+ {[%clk 0:00:14.1]} 59... Ke7 {[%clk 0:00:21.9]}
60. Ka3 {[%clk 0:00:15]} 60... Bg4 {[%clk 0:00:17.5]} 61. Kb2 {[%clk 0:00:14.4]}
61... Bh5 {[%clk 0:00:15.5]} 62. Bc2 {[%clk 0:00:13.2]} 62... Bf3 {[%clk
0:00:12.3]} 63. Kc3 {[%clk 0:00:13.2]} 63... Bg4 {[%clk 0:00:12]} 64. Kd2 {[%clk
0:00:13.5]} 64... Bh5 {[%clk 0:00:11.5]} 65. Ke3 {[%clk 0:00:13.2]} 65... Kd7
{[%clk 0:00:11.3]} 66. Kf2 {[%clk 0:00:10.9]} 66... Ke7 {[%clk 0:00:11.3]} 67.
Ke3 {[%clk 0:00:10.8]} 67... Kd7 {[%clk 0:00:10.8]} 68. Kd2 {[%clk 0:00:09.2]}
68... Ke7 {[%clk 0:00:10.9]} 69. Ke3 {[%clk 0:00:09.1]} 1/2-1/2

[Event "*** SCC Grand Prix: Titled Tuesday Blitz"]
[Site "Chess.com"]
[Date "2020.10.13"]
[Round "4"]
[White "Mr_Sinigami"]
[Black "JosefineHeinemann"]
[Result "1/2-1/2"]
[WhiteElo "2494"]
[BlackElo "2628"]
[TimeControl "180+1"]
[EndTime "10:40:42 PDT"]
[Termination "Game drawn - insufficient material"]

1. d4 {[%clk 0:03:00.9]} 1... Nf6 {[%clk 0:02:59.6]} 2. Nf3 {[%clk 0:03:00.1]}
2... g6 {[%clk 0:02:59.7]} 3. Bf4 {[%clk 0:02:59.8]} 3... Bg7 {[%clk 0:02:59.6]}
4. e3 {[%clk 0:02:59.4]} 4... O-O {[%clk 0:03:00.1]} 5. h3 {[%clk 0:02:59.8]}
5... d6 {[%clk 0:03:00.7]} 6. Be2 {[%clk 0:02:59.5]} 6... b6 {[%clk 0:03:01.3]}
7. O-O {[%clk 0:02:58.7]} 7... Bb7 {[%clk 0:03:01.9]} 8. a4 {[%clk 0:02:58.3]}
8... a5 {[%clk 0:03:00.2]} 9. Na3 {[%clk 0:02:57.2]} 9... Nbd7 {[%clk
0:03:00.4]} 10. c3 {[%clk 0:02:56.3]} 10... Re8 {[%clk 0:02:58.3]} 11. Bh2
{[%clk 0:02:55]} 11... e5 {[%clk 0:02:54.9]} 12. Nd2 {[%clk 0:02:52.5]} 12... e4
{[%clk 0:02:50.1]} 13. Nb5 {[%clk 0:02:48.6]} 13... Nf8 {[%clk 0:02:46]} 14. b4
{[%clk 0:02:45.8]} 14... Ne6 {[%clk 0:02:33.2]} 15. bxa5 {[%clk 0:02:40.7]}
15... Rxa5 {[%clk 0:02:31.8]} 16. Nb3 {[%clk 0:02:31.6]} 16... Ra8 {[%clk
0:02:30.5]} 17. a5 {[%clk 0:02:24.9]} 17... bxa5 {[%clk 0:02:16]} 18. Nxa5
{[%clk 0:02:22.5]} 18... Ba6 {[%clk 0:02:16]} 19. Qb3 {[%clk 0:02:05.9]} 19...
Qd7 {[%clk 0:02:13.2]} 20. c4 {[%clk 0:01:52]} 20... Reb8 {[%clk 0:02:08.3]} 21.
Qc2 {[%clk 0:01:39.3]} 21... Bf8 {[%clk 0:01:47.1]} 22. d5 {[%clk 0:01:31.2]}
22... Nc5 {[%clk 0:01:46.3]} 23. Nc6 {[%clk 0:01:29.6]} 23... Re8 {[%clk
0:01:43.3]} 24. Nbd4 {[%clk 0:01:18.9]} 24... Bg7 {[%clk 0:01:37.5]} 25. Ra2
{[%clk 0:01:17.7]} 25... Bb7 {[%clk 0:01:31]} 26. Rfa1 {[%clk 0:01:16.8]} 26...
h5 {[%clk 0:01:15.4]} 27. Bf4 {[%clk 0:01:10.9]} 27... Kh7 {[%clk 0:00:59.7]}
28. Rxa8 {[%clk 0:01:03.7]} 28... Rxa8 {[%clk 0:00:58.7]} 29. Rxa8 {[%clk
0:01:03.6]} 29... Bxa8 {[%clk 0:00:59.6]} 30. Qa2 {[%clk 0:01:02.4]} 30... Qc8
{[%clk 0:00:54.8]} 31. Nb5 {[%clk 0:00:54]} 31... Bxc6 {[%clk 0:00:52.4]} 32.
dxc6 {[%clk 0:00:52.9]} 32... Ne8 {[%clk 0:00:52.3]} 33. Qa7 {[%clk 0:00:40]}
33... Qa6 {[%clk 0:00:43]} 34. Qb8 {[%clk 0:00:30.1]} 34... Qxc6 {[%clk
0:00:41]} 35. g4 {[%clk 0:00:27.6]} 35... hxg4 {[%clk 0:00:40.1]} 36. Bxg4
{[%clk 0:00:27.2]} 36... Ne6 {[%clk 0:00:33.2]} 37. Bg3 {[%clk 0:00:26.3]} 37...
Qd7 {[%clk 0:00:24.3]} 38. Kh2 {[%clk 0:00:24.5]} 38... Qe7 {[%clk 0:00:21.8]}
39. Qc8 {[%clk 0:00:22.6]} 39... Nc5 {[%clk 0:00:18.8]} 40. Nd4 {[%clk
0:00:20.5]} 40... Be5 {[%clk 0:00:18.5]} 41. Nc6 {[%clk 0:00:19.7]} 41... Bxg3+
{[%clk 0:00:17.6]} 42. Kxg3 {[%clk 0:00:19.7]} 42... Qf8 {[%clk 0:00:15.6]} 43.
Bd7 {[%clk 0:00:19.5]} 43... Nxd7 {[%clk 0:00:14.9]} 44. Qxd7 {[%clk 0:00:19.9]}
44... Kg7 {[%clk 0:00:15.8]} 45. Nd4 {[%clk 0:00:17.7]} 45... Kg8 {[%clk
0:00:16.1]} 46. Nc6 {[%clk 0:00:16.9]} 46... Nf6 {[%clk 0:00:15]} 47. Qxc7
{[%clk 0:00:16.5]} 47... Qh6 {[%clk 0:00:14.5]} 48. Qxd6 {[%clk 0:00:14.9]}
48... Qg5+ {[%clk 0:00:14.1]} 49. Kh2 {[%clk 0:00:15.1]} 49... Qf5 {[%clk
0:00:13.4]} 50. Qf4 {[%clk 0:00:14.4]} 50... Qxf4+ {[%clk 0:00:13.7]} 51. exf4
{[%clk 0:00:14.6]} 51... Nd7 {[%clk 0:00:14.6]} 52. Ne5 {[%clk 0:00:13.5]} 52...
Nc5 {[%clk 0:00:12.5]} 53. Kg2 {[%clk 0:00:13.2]} 53... f6 {[%clk 0:00:12.8]}
54. Nc6 {[%clk 0:00:11.6]} 54... Kf7 {[%clk 0:00:12.6]} 55. f3 {[%clk
0:00:10.7]} 55... e3 {[%clk 0:00:11.8]} 56. Kf1 {[%clk 0:00:10.6]} 56... Nd3
{[%clk 0:00:10.6]} 57. Ke2 {[%clk 0:00:10.1]} 57... Nxf4+ {[%clk 0:00:10.9]} 58.
Kxe3 {[%clk 0:00:10.6]} 58... Nxh3 {[%clk 0:00:11.8]} 59. c5 {[%clk 0:00:08.9]}
59... Ke6 {[%clk 0:00:12]} 60. Nd4+ {[%clk 0:00:07.4]} 60... Kd5 {[%clk
0:00:12.3]} 61. c6 {[%clk 0:00:07.6]} 61... Kd6 {[%clk 0:00:12.6]} 62. f4 {[%clk
0:00:06.8]} 62... f5 {[%clk 0:00:12.1]} 63. Kf3 {[%clk 0:00:05.9]} 63... g5
{[%clk 0:00:11.5]} 64. Nxf5+ {[%clk 0:00:04.6]} 64... Kxc6 {[%clk 0:00:10.6]}
65. fxg5 {[%clk 0:00:04.8]} 65... Nxg5+ {[%clk 0:00:11.5]} 1/2-1/2